bitfinex/quotes_BTCUSD_20240723
["timestamp","ask_amount","ask_price","bid_price","bid_amount"]
[1721747668254,0.052,67029.0,67028.0,1.5]
[1721747668255,0.195,67029.0,67028.0,1.5]
[1721747668654,0.195,67029.0,67028.0,1.50692224]
[1721747669185,0.195,67029.0,67028.0,0.00692224]
[1721747669186,1.08796491,67029.0,67028.0,0.00692224]
[1721747669613,0.05,67016.0,67014.0,1.142048]
[1721747669784,0.05,67016.0,67015.0,1.64922]
[1721747670392,0.05,67016.0,67015.0,1.5]
[1721747670574,0.05,67016.0,67015.0,1.64922]
[1721747671152,0.05,67020.0,67015.0,1.5]
[1721747671428,0.05,67023.0,67022.0,0.149204]
[1721747671755,0.05,67023.0,67015.0,0.07348942]
[1721747671756,0.05,67023.0,67017.0,0.298428]
[1721747671984,0.0818,67029.0,67028.0,0.149191]
[1721747672186,0.0818,67029.0,67026.0,0.298391]
[1721747673083,0.05,67025.0,67024.0,0.1492]
[1721747674046,0.0818,67029.0,67025.0,0.149198]
[1721747674047,0.05,67026.0,67025.0,0.149198]
[1721747674250,0.0818,67029.0,67022.0,1.5]
[1721747674251,0.05,67025.0,67022.0,1.5]
[1721747674996,0.05,67025.0,67022.0,1.649203]
[1721747675551,0.0818,67029.0,67022.0,1.5]
[1721747675552,0.05,67023.0,67022.0,1.5]
[1721747682051,0.05,67027.0,67022.0,1.5]
[1721747682252,0.001,67023.0,67022.0,2.03310242]
[1721747682741,0.001,67023.0,67022.0,1.661204]
[1721747682959,0.001,67023.0,67022.0,1.959613]
[1721747683176,0.001,67023.0,67022.0,2.84994033]
[1721747683381,0.001,67023.0,67022.0,2.40504191]
[1721747683582,0.001,67023.0,67022.0,2.10663291]
[1721747683710,0.001,67023.0,67022.0,2.11863291]
[1721747684139,0.052,67029.0,67024.0,0.149198]
[1721747684348,0.052,67029.0,67025.0,0.149197]
[1721747684541,0.052,67029.0,67026.0,0.149195]
[1721747684922,0.14013089,67028.0,67023.0,0.14701991]
[1721747685566,0.04442464,67026.0,67024.0,0.149198]
[1721747685774,0.052,67029.0,67026.0,0.149194]
[1721747685916,0.052,67029.0,67026.0,0.163194]
[1721747686536,0.052,67029.0,67026.0,0.014]
[1721747687371,0.052,67029.0,67025.0,0.149196]
[1721747688082,0.052,67029.0,67024.0,0.149199]
[1721747688322,0.052,67029.0,67026.0,0.014]
[1721747688619,0.05,67027.0,67026.0,0.014]
[1721747689254,0.05,67027.0,67024.0,0.014]
[1721747689667,0.04442337,67025.0,67024.0,0.014]
[1721747689869,0.05,67027.0,67024.0,0.014]
[1721747690040,0.05,67027.0,67023.0,0.149202]
[1721747690485,0.05,67027.0,67026.0,0.014]
[1721747690688,0.1235651,67027.0,67026.0,0.014]
[1721747690890,0.1235651,67027.0,67025.0,0.163197]
[1721747691088,0.0735651,67026.0,67025.0,0.149197]
[1721747691441,0.0735651,67026.0,67025.0,0.447593]
[1721747691617,0.0735651,67026.0,67025.0,0.149197]
[1721747692027,0.05,67027.0,67026.0,0.163194]
[1721747692424,0.12355585,67027.0,67026.0,0.149194]
[1721747693196,0.05,67027.0,67024.0,0.163199]
[1721747693403,0.07355983,67026.0,67025.0,0.149196]
[1721747693601,0.35461363,67026.0,67025.0,0.149196]
[1721747693729,0.07355983,67026.0,67025.0,0.149196]
[1721747693931,0.0444849,67028.0,67025.0,0.014]
[1721747694139,0.0444849,67028.0,67027.0,0.149193]
[1721747694351,0.16805902,67028.0,67027.0,0.149193]
[1721747694565,0.12357412,67028.0,67027.0,0.149193]
[1721747694766,0.31439875,67028.0,67027.0,0.149193]
[1721747694972,0.26439875,67028.0,67024.0,0.014]
[1721747695180,0.052,67029.0,67028.0,0.149191]
[1721747695383,0.18745892,67029.0,67028.0,0.149191]
[1721747695606,0.07560088,67029.0,67028.0,0.663473]
[1721747695879,0.07560088,67029.0,67028.0,0.961855]
[1721747696032,0.12010862,67029.0,67028.0,0.77651713]
[1721747696189,0.07560088,67029.0,67028.0,1.27191904]
[1721747696385,0.05671501,67029.0,67028.0,1.74330104]
[1721747696613,0.04547384,67029.0,67028.0,2.73612804]
[1721747696825,0.04450774,67031.0,67030.0,0.149186]
[1721747697070,0.04450774,67031.0,67030.0,0.24701991]
[1721747697071,0.31928051,67031.0,67030.0,0.24701991]
[1721747697280,0.10294345,67037.0,67030.0,0.3637292]
[1721747697478,0.11518539,67036.0,67032.0,0.14918]
[1721747697682,0.07065194,67035.0,67032.0,0.14918]
[1721747697889,0.07065194,67035.0,67031.0,0.14701991]
[1721747697890,0.2275279,67034.0,67033.0,0.14918]
[1721747698087,0.07065194,67034.0,67033.0,0.14918]
[1721747698779,0.20904499,67034.0,67033.0,0.14918]
[1721747699006,0.07065194,67034.0,67033.0,0.14918]
[1721747699414,0.07065194,67034.0,67032.0,0.014]
[1721747699642,0.1151,67033.0,67032.0,0.014]
[1721747699844,0.46318198,67033.0,67032.0,0.014]
[1721747700064,0.32950426,67033.0,67032.0,0.014]
[1721747700526,0.32950426,67033.0,67028.0,2.70587113]
[1721747700527,0.05,67032.0,67028.0,2.70587113]
[1721747700738,0.1322,67029.0,67028.0,0.11304413]
[1721747700964,0.34660426,67029.0,67028.0,0.11304413]
[1721747701178,0.34056616,67029.0,67028.0,0.26223513]
[1721747701890,0.29993935,67029.0,67028.0,0.75763704]
[1721747702140,0.07165194,67029.0,67028.0,1.62576292]
[1721747702345,0.001,67029.0,67028.0,1.61176292]
[1721747702552,0.001,67029.0,67028.0,1.75982566]
[1721747702758,0.001,67029.0,67028.0,1.70982566]
[1721747702963,0.001,67029.0,67028.0,0.94199892]
[1721747703157,0.001,67029.0,67028.0,1.24038092]
[1721747703611,0.07806339,67037.0,67036.0,0.44752]
[1721747703799,0.00841,67037.0,67036.0,1.52749579]
[1721747703997,0.00841,67037.0,67036.0,1.40713391]
[1721747704215,0.00841,67037.0,67036.0,1.68976503]
[1721747705159,0.00841,67037.0,67036.0,1.18951803]
[1721747705303,0.00841,67037.0,67036.0,1.17551803]
[1721747705504,0.00841,67037.0,67036.0,1.48786503]
[1721747705704,0.00841,67037.0,67036.0,2.78621203]
[1721747705970,0.0634,67054.0,67036.0,2.78621203]
[1721747705971,0.05,67060.0,67048.0,0.547439]
[1721747706155,0.00269323,67064.0,67058.0,0.149124]
[1721747706358,0.0755,67065.0,67058.0,2.59292403]
[1721747706562,0.05,67064.0,67058.0,3.00102296]
[1721747706762,0.05,67064.0,67058.0,2.99117303]
[1721747707338,0.05,67064.0,67058.0,2.77527303]
[1721747707537,0.05,67064.0,67058.0,2.61652071]
[1721747707740,0.05,67064.0,67058.0,2.47702403]
[1721747707889,0.05,67064.0,67058.0,2.49102403]
[1721747708094,0.05,67064.0,67058.0,2.31827171]
[1721747708562,0.003,67059.0,67058.0,2.34627171]
[1721747709100,0.003,67059.0,67058.0,2.64452071]
[1721747709583,0.003,67059.0,67058.0,2.86042071]
[1721747709831,0.002,67059.0,67058.0,2.72254191]
[1721747710079,0.002,67059.0,67058.0,2.84634726]
[1721747710080,0.003,67059.0,67058.0,2.84634726]
[1721747710294,0.003,67059.0,67058.0,1.36765451]
[1721747710539,0.002,67059.0,67058.0,1.35365451]
[1721747710739,0.002,67059.0,67058.0,1.33965451]
[1721747711069,0.002,67059.0,67058.0,1.70190351]
[1721747711319,0.002,67059.0,67058.0,1.68790351]
[1721747711459,0.003,67059.0,67058.0,1.65190351]
[1721747711668,0.003,67059.0,67058.0,1.66590351]
[1721747711866,0.003,67059.0,67058.0,1.65190351]
[1721747712065,0.003,67059.0,67058.0,1.70190351]
[1721747712729,0.003,67059.0,67058.0,1.70190554]
[1721747712936,0.002,67069.0,67061.0,1.093822]
[1721747713140,0.002,67069.0,67068.0,0.447306]
[1721747713291,0.002,67069.0,67068.0,0.96141]
[1721747713493,0.002,67069.0,67068.0,1.18520453]
[1721747713694,0.002,67069.0,67068.0,1.63042844]
[1721747714863,0.002,67069.0,67068.0,3.19442844]
[1721747714980,0.0778,67079.0,67074.0,0.05]
[1721747715354,0.002,67079.0,67078.0,0.66314]
[1721747715556,0.002,67079.0,67078.0,1.68027444]
[1721747715692,0.002,67079.0,67078.0,3.13027444]
[1721747716296,0.002,67079.0,67078.0,3.00647991]
[1721747716552,0.002,67079.0,67078.0,2.70831991]
[1721747717261,0.002,67079.0,67078.0,3.00647991]
[1721747717468,0.002,67079.0,67078.0,3.02047991]
[1721747717684,0.052,67079.0,67078.0,0.028]
[1721747717894,0.052,67079.0,67078.0,0.16308]
[1721747718102,0.05,67078.0,67077.0,0.149082]
[1721747718307,0.05,67078.0,67072.0,0.298184]
[1721747718308,0.05,67075.0,67072.0,0.298184]
[1721747718509,0.05,67075.0,67074.0,0.447267]
[1721747718811,0.05,67075.0,67074.0,1.277267]
[1721747719014,0.05,67075.0,67074.0,0.83]
[1721747719220,0.05,67075.0,67074.0,0.1]
[1721747719427,0.05,67075.0,67074.0,0.989089]
[1721747719630,0.05,67068.0,67067.0,0.03]
[1721747719833,0.497306,67068.0,67067.0,0.03]
[1721747720065,0.93851,67068.0,67067.0,0.03]
[1721747720269,0.342102,67068.0,67067.0,0.03]
[1721747720678,0.640306,67068.0,67067.0,0.03]
[1721747720853,0.05,67063.0,67062.0,0.149115]
[1721747721056,0.05,67063.0,67062.0,0.447346]
[1721747721258,0.05,67063.0,67062.0,0.149115]
[1721747721467,0.05,67061.0,67060.0,0.149119]
[1721747721663,0.05,67061.0,67057.0,0.298251]
[1721747721664,0.05,67060.0,67059.0,0.149122]
[1721747721867,0.00269323,67067.0,67062.0,0.149115]
[1721747721868,0.05,67063.0,67062.0,0.149115]
[1721747722209,0.05,67067.0,67066.0,0.149106]
[1721747722344,0.05,67067.0,67066.0,0.447319]
[1721747724298,0.143,67068.0,67067.0,0.745522]
[1721747724499,0.193,67068.0,67067.0,0.745522]
[1721747724703,0.05,67067.0,67060.0,0.24701991]
[1721747724908,0.00269323,67066.0,67061.0,0.14701991]
[1721747725115,0.05,67063.0,67062.0,0.12378633]
[1721747725493,0.05,67061.0,67060.0,0.249119]
[1721747725699,0.05,67061.0,67060.0,0.37290581]
[1721747726451,0.05,67061.0,67060.0,0.2237868]
[1721747726994,0.05,67061.0,67060.0,0.3729068]
[1721747727530,0.292103,67068.0,67060.0,0.3729068]
[1721747727531,0.05,67062.0,67060.0,0.6851468]
[1721747727728,0.05,67065.0,67061.0,0.2237868]
[1721747727935,0.05,67065.0,67064.0,0.447333]
[1721747728222,0.143,67068.0,67064.0,0.44524191]
[1721747728399,0.0765,67068.0,67067.0,0.745522]
[1721747728599,0.0654,67074.0,67069.0,0.1491]
[1721747728600,0.05,67070.0,67069.0,0.1491]
[1721747728810,0.05,67071.0,67070.0,0.149097]
[1721747729020,0.002,67079.0,67078.0,0.14908]
[1721747729221,0.002,67079.0,67078.0,0.44724]
[1721747729343,0.002,67079.0,67070.0,0.14701991]
[1721747729344,0.05,67076.0,67070.0,0.14701991]
[1721747729541,0.05,67076.0,67071.0,0.22377929]
[1721747729764,0.05,67073.0,67072.0,0.27287229]
[1721747729971,0.05,67073.0,67072.0,0.12377929]
[1721747730393,0.343291,67073.0,67072.0,0.12377929]
[1721747730965,0.1942,67073.0,67072.0,0.13777929]
[1721747731166,0.641473,67073.0,67072.0,0.13778604]
[1721747731375,0.641473,67073.0,67072.0,0.12378604]
[1721747731580,0.1942,67073.0,67072.0,0.13378604]
[1721747731783,0.343291,67073.0,67072.0,0.14278604]
[1721747732005,0.1942,67073.0,67072.0,0.14278604]
[1721747732221,0.343291,67073.0,67072.0,0.14278604]
[1721747732425,0.343291,67073.0,67072.0,0.13378604]
[1721747732611,0.641473,67073.0,67072.0,0.13378604]
[1721747732959,0.343291,67073.0,67072.0,0.12378604]
[1721747733161,0.343291,67073.0,67072.0,0.28436819]
[1721747733755,0.343291,67073.0,67072.0,0.12378604]
[1721747734021,0.343291,67073.0,67072.0,0.13778604]
[1721747734444,0.05,67068.0,67067.0,0.149103]
[1721747734644,0.05,67069.0,67068.0,0.149102]
[1721747734771,0.05,67069.0,67068.0,0.58218833]
[1721747734973,0.05,67069.0,67068.0,1.02949433]
[1721747735173,0.05,67070.0,67069.0,0.4473]
[1721747735370,0.05,67071.0,67070.0,0.447292]
[1721747735601,0.05,67071.0,67070.0,0.73127633]
[1721747735804,0.1442,67073.0,67072.0,0.44728]
[1721747735979,0.002,67079.0,67072.0,0.44728]
[1721747735980,0.0808,67079.0,67078.0,0.14908]
[1721747736181,0.1308,67079.0,67078.0,0.12379134]
[1721747737240,0.1308,67079.0,67078.0,0.011]
[1721747737426,0.1308,67079.0,67078.0,0.13478394]
[1721747737685,0.1308,67079.0,67078.0,0.12378394]
[1721747737887,0.1308,67079.0,67078.0,0.13578394]
[1721747738095,0.1308,67079.0,67078.0,0.28342267]
[1721747738503,0.1308,67079.0,67078.0,0.12378394]
[1721747739012,0.1308,67079.0,67078.0,0.28341588]
[1721747739224,0.578032,67079.0,67078.0,0.28341588]
[1721747739367,0.279877,67079.0,67078.0,0.12378394]
[1721747739540,0.279877,67079.0,67078.0,0.13478394]
[1721747739947,0.1308,67079.0,67078.0,0.13478394]
[1721747740352,0.279877,67079.0,67078.0,0.14678753]
[1721747740563,0.876187,67079.0,67078.0,0.14678753]
[1721747740772,0.876187,67079.0,67078.0,0.13478753]
[1721747740981,1.32136191,67079.0,67078.0,0.13478753]
[1721747741242,1.38516191,67079.0,67078.0,0.13478753]
[1721747741474,1.38516191,67079.0,67078.0,0.14678753]
[1721747741701,1.08700691,67079.0,67078.0,0.14678753]
[1721747741908,1.08700691,67079.0,67078.0,0.13478753]
[1721747741909,0.641832,67079.0,67078.0,0.13478753]
[1721747742108,0.641832,67079.0,67078.0,0.14578753]
[1721747742548,0.1946,67079.0,67078.0,0.14578753]
[1721747743285,0.1946,67079.0,67078.0,0.034]
[1721747743484,0.1946,67079.0,67078.0,0.15778818]
[1721747743799,0.002,67079.0,67078.0,1.06235808]
[1721747744066,0.002,67079.0,67078.0,0.76419808]
[1721747744067,0.052,67079.0,67078.0,0.76419808]
[1721747744252,0.052,67079.0,67078.0,0.76445019]
[1721747744462,0.002,67079.0,67078.0,1.06261019]
[1721747744778,0.002,67079.0,67078.0,0.90318818]
[1721747744932,0.002,67079.0,67078.0,1.06261177]
[1721747745513,0.002,67079.0,67078.0,0.76445177]
[1721747745720,0.002,67079.0,67078.0,0.31704506]
[1721747745895,0.052,67079.0,67078.0,0.31703508]
[1721747746554,0.052,67079.0,67078.0,0.15778022]
[1721747746989,0.052,67079.0,67078.0,0.31743612]
[1721747747552,0.201077,67079.0,67078.0,0.31743612]
[1721747747764,0.562032,67079.0,67078.0,0.15778022]
[1721747749192,0.562032,67079.0,67078.0,0.31727169]
[1721747749610,0.562032,67079.0,67078.0,0.31708143]
[1721747749821,0.562032,67079.0,67078.0,0.15778129]
[1721747750162,0.562872,67079.0,67078.0,0.31711142]
[1721747750383,0.861027,67079.0,67078.0,0.31711142]
[1721747750590,0.562872,67079.0,67078.0,0.31711142]
[1721747751238,0.562872,67079.0,67078.0,0.15778129]
[1721747751668,0.264717,67079.0,67078.0,0.15778129]
[1721747751862,0.11564,67079.0,67078.0,0.31682392]
[1721747752069,0.16021162,67079.0,67078.0,0.15778129]
[1721747752223,0.4981292,67079.0,67078.0,0.15778129]
[1721747752426,0.90771325,67079.0,67078.0,0.15778129]
[1721747752650,0.90771325,67079.0,67078.0,0.15779658]
[1721747752651,0.88718879,67079.0,67078.0,0.15779658]
[1721747752854,0.7258769,67079.0,67078.0,0.31714075]
[1721747753067,1.17527378,67079.0,67078.0,0.15779658]
[1721747754080,1.47342878,67079.0,67078.0,0.15779658]
[1721747754334,1.62044869,67079.0,67078.0,0.15779658]
[1721747755143,1.62044869,67079.0,67078.0,0.13579658]
[1721747755499,1.61695683,67079.0,67078.0,0.13781051]
[1721747756001,1.61695683,67079.0,67078.0,0.13581051]
[1721747756202,1.61695683,67079.0,67078.0,0.13781051]
[1721747756654,1.61695683,67079.0,67078.0,0.12581051]
[1721747757035,1.61695683,67079.0,67078.0,0.12881051]
[1721747757422,1.61695683,67079.0,67078.0,0.12581051]
[1721747757667,1.61695683,67079.0,67078.0,0.12881051]
[1721747758044,1.61695683,67079.0,67078.0,0.005]
[1721747758587,1.45744379,67079.0,67078.0,0.005]
[1721747758733,1.6181402,67079.0,67078.0,0.005]
[1721747760317,2.0162952,67079.0,67078.0,0.005]
[1721747760542,0.845477,67071.0,67070.0,0.000924]
[1721747760761,1.71794816,67071.0,67070.0,0.000924]
[1721747760958,2.23352479,67071.0,67070.0,0.000924]
[1721747761170,2.22445969,67071.0,67070.0,0.000924]
[1721747761721,0.1319,67050.0,67049.0,0.1586176]
[1721747761936,0.1319,67050.0,67049.0,0.1238314]
[1721747762140,0.05,67050.0,67049.0,0.2729754]
[1721747762742,0.04465183,67058.0,67049.0,0.1238314]
[1721747762959,0.2809754,67070.0,67049.0,0.1238314]
[1721747762960,0.001,67071.0,67059.0,0.1]
[1721747763162,0.00284,67079.0,67059.0,0.1]
[1721747763163,0.05284,67079.0,67078.0,0.44724]
[1721747763412,0.00841,67084.0,67083.0,0.745345]
[1721747763626,0.04665183,67089.0,67088.0,0.149057]
[1721747763842,0.04665183,67089.0,67088.0,0.961187]
[1721747763843,0.002,67089.0,67088.0,0.961187]
[1721747764054,0.002,67089.0,67088.0,2.59043933]
[1721747764305,0.002,67089.0,67088.0,2.59045025]
[1721747764969,0.002,67089.0,67088.0,2.75774595]
[1721747765177,0.003,67089.0,67088.0,2.77174595]
[1721747765380,0.003,67089.0,67088.0,3.31688086]
[1721747765910,0.003,67089.0,67088.0,3.33262517]
[1721747766593,0.003,67089.0,67088.0,3.40517703]
[1721747766791,0.003,67089.0,67088.0,3.41403929]
[1721747766941,0.003,67089.0,67088.0,3.36541003]
[1721747767353,0.003,67089.0,67088.0,3.19716044]
[1721747767913,0.003,67089.0,67088.0,3.34305377]
[1721747768129,0.003,67089.0,67088.0,3.16529818]
[1721747768880,0.003,67089.0,67088.0,3.17267018]
[1721747769291,0.003,67089.0,67088.0,1.75897627]
[1721747769292,0.053,67089.0,67088.0,1.75897627]
[1721747769502,0.1968,67089.0,67088.0,2.10614827]
[1721747769700,0.1968,67089.0,67088.0,1.97597016]
[1721747770071,0.1968,67089.0,67088.0,1.80803327]
[1721747770311,0.1958,67089.0,67088.0,2.09026252]
[1721747770549,0.1958,67089.0,67088.0,2.07804587]
[1721747770752,0.002,67089.0,67088.0,2.39016087]
[1721747770908,0.002,67089.0,67088.0,2.37616087]
[1721747771116,0.002,67089.0,67088.0,2.82129578]
[1721747771317,0.002,67089.0,67088.0,2.89119578]
[1721747771519,0.002,67089.0,67088.0,2.92129578]
[1721747771777,0.002,67089.0,67088.0,2.47616087]
[1721747771977,0.052,67089.0,67088.0,2.07804587]
[1721747772587,0.052,67089.0,67088.0,2.09204587]
[1721747772931,0.052,67089.0,67088.0,2.10605468]
[1721747773152,0.052,67089.0,67088.0,2.09205468]
[1721747773357,0.053,67089.0,67088.0,2.39016968]
[1721747773559,0.003,67089.0,67088.0,2.39016968]
[1721747773765,0.003,67089.0,67088.0,2.40416968]
[1721747773973,0.002,67089.0,67088.0,2.67428468]
[1721747774179,0.002,67089.0,67088.0,2.37616968]
[1721747774335,0.003,67089.0,67088.0,2.40416968]
[1721747774530,0.053,67089.0,67088.0,2.10605468]
[1721747774731,0.053,67089.0,67088.0,2.09205468]
[1721747775752,0.052,67089.0,67088.0,2.07805468]
[1721747775924,0.052,67089.0,67088.0,2.07806227]
[1721747776160,0.052,67089.0,67088.0,2.10606227]
[1721747776331,0.052,67089.0,67088.0,2.40417727]
[1721747776552,0.052,67089.0,67088.0,2.37617727]
[1721747776836,0.002,67089.0,67088.0,2.40417727]
[1721747777450,0.002,67089.0,67088.0,2.39017727]
[1721747778158,0.052,67089.0,67088.0,2.09206227]
[1721747778349,0.052,67089.0,67088.0,1.79394727]
[1721747778560,0.052,67089.0,67088.0,2.09206227]
[1721747778561,0.1318,67089.0,67088.0,2.09206227]
[1721747779047,0.1318,67089.0,67088.0,2.55706211]
[1721747779291,0.1318,67089.0,67088.0,2.57106211]
[1721747779890,0.0818,67089.0,67088.0,2.57106211]
[1721747780091,0.002,67089.0,67088.0,2.57106211]
[1721747780302,0.002,67089.0,67088.0,3.01619702]
[1721747780564,0.002,67089.0,67088.0,4.30031202]
[1721747780778,0.002,67089.0,67088.0,4.33331202]
[1721747780996,0.002,67089.0,67088.0,4.04919702]
[1721747781200,0.052,67089.0,67088.0,0.42577511]
[1721747781413,0.052,67089.0,67088.0,0.32577511]
[1721747782037,0.052,67089.0,67088.0,0.30793125]
[1721747782235,0.052,67089.0,67088.0,0.47483211]
[1721747782571,0.052,67089.0,67088.0,0.30793125]
[1721747783581,0.05284,67089.0,67088.0,0.15887425]
[1721747784213,0.05284,67089.0,67088.0,0.47557968]
[1721747784414,0.05284,67089.0,67088.0,0.15887425]
[1721747784787,0.05284,67089.0,67088.0,0.32652268]
[1721747785395,0.05284,67089.0,67088.0,0.47557968]
[1721747785543,0.00284,67089.0,67088.0,1.07180968]
[1721747785746,0.00284,67089.0,67088.0,2.36582468]
[1721747785948,0.00284,67089.0,67088.0,2.51284459]
[1721747786110,0.00284,67089.0,67088.0,2.66874459]
[1721747787960,0.00284,67089.0,67088.0,2.66937345]
[1721747788766,0.00284,67089.0,67088.0,4.16937345]
[1721747790908,0.00284,67089.0,67088.0,4.00108689]
[1721747791084,0.00284,67089.0,67088.0,4.16992583]
[1721747791636,0.00284,67089.0,67088.0,4.17833583]
[1721747794075,0.00284,67089.0,67088.0,4.17735029]
[1721747795395,0.00284,67089.0,67088.0,4.33201876]
[1721747795611,0.00284,67089.0,67088.0,4.33798385]
[1721747795810,0.00284,67089.0,67088.0,4.12145029]
[1721747796419,0.00284,67089.0,67088.0,3.34145029]
[1721747796572,0.00284,67089.0,67088.0,4.09898222]
[1721747796969,0.00284,67089.0,67088.0,3.80739726]
[1721747797171,0.00284,67089.0,67088.0,4.098742]
[1721747797971,0.00284,67089.0,67088.0,3.800627]
[1721747798174,0.05284,67089.0,67088.0,1.93488816]
[1721747798503,0.19364,67089.0,67088.0,0.32647816]
[1721747798852,0.19364,67089.0,67088.0,0.47553516]
[1721747799883,0.07834,67089.0,67088.0,0.78042042]
[1721747800087,0.07834,67089.0,67088.0,1.07141695]
[1721747800286,0.00284,67089.0,67088.0,2.53245186]
[1721747800847,0.00284,67089.0,67088.0,2.69431727]
[1721747801185,0.00284,67089.0,67088.0,2.18030227]
[1721747801383,0.00284,67089.0,67088.0,2.11843686]
[1721747801585,0.00284,67089.0,67088.0,2.18731695]
[1721747801868,0.00284,67089.0,67088.0,1.88920195]
[1721747802040,0.05284,67089.0,67088.0,0.57518695]
[1721747802454,0.05284,67089.0,67088.0,0.47518695]
[1721747802656,0.11794,67089.0,67088.0,0.32612995]
[1721747803087,0.11794,67089.0,67088.0,0.18419042]
[1721747803281,0.11794,67089.0,67088.0,0.47440729]
[1721747803498,0.11794,67089.0,67088.0,0.32535029]
[1721747803700,0.19754,67089.0,67088.0,0.32535029]
[1721747805237,0.19754,67089.0,67088.0,0.47440729]
[1721747805792,0.19754,67089.0,67088.0,0.18419042]
[1721747806127,0.00284,67089.0,67088.0,1.81853542]
[1721747806326,0.00284,67089.0,67088.0,1.22555533]
[1721747806797,0.00284,67089.0,67088.0,2.72555533]
[1721747807030,0.00284,67089.0,67088.0,3.53555533]
[1721747807202,0.00284,67089.0,67088.0,2.42744033]
[1721747808583,0.05284,67089.0,67088.0,0.48230542]
[1721747808782,0.05284,67089.0,67088.0,0.77323241]
[1721747809482,0.05284,67089.0,67088.0,0.8351007]
[1721747809902,0.05284,67089.0,67088.0,0.77323241]
[1721747811231,0.00284,67089.0,67088.0,0.77323241]
[1721747811482,0.05284,67089.0,67088.0,0.47511741]
[1721747811686,0.11364,67089.0,67088.0,0.47511741]
[1721747811901,0.11364,67089.0,67088.0,0.77323241]
[1721747812636,0.11364,67089.0,67088.0,0.47511741]
[1721747812853,0.11364,67089.0,67088.0,0.32606041]
[1721747813199,1.47904791,67089.0,67088.0,0.17616041]
[1721747813432,1.234051,67085.0,67084.0,0.000924]
[1721747813635,1.70072179,67085.0,67084.0,0.000924]
[1721747814013,1.58904914,67085.0,67084.0,0.000924]
[1721747814393,1.58904914,67085.0,67058.0,0.059708]
[1721747814394,0.1935,67059.0,67058.0,0.059708]
[1721747814837,0.1935,67059.0,67058.0,0.208832]
[1721747815038,0.1935,67059.0,67058.0,0.149124]
[1721747815681,0.1279,67068.0,67058.0,0.23450933]
[1721747815865,0.05,67064.0,67062.0,0.2159]
[1721747816158,0.05,67064.0,67063.0,0.447337]
[1721747816878,0.05,67059.0,67058.0,0.299173]
[1721747817003,0.05,67059.0,67058.0,0.150048]
[1721747817230,0.051,67059.0,67058.0,0.158048]
[1721747817454,0.051,67059.0,67058.0,0.448297]
[1721747817455,0.05,67059.0,67058.0,0.448297]
[1721747817691,0.05,67059.0,67058.0,0.461297]
[1721747818272,0.001,67059.0,67058.0,0.759546]
[1721747818477,0.001,67059.0,67058.0,0.754546]
[1721747818478,0.002,67059.0,67058.0,0.754546]
[1721747818677,0.003,67059.0,67058.0,0.767546]
[1721747818877,0.002,67059.0,67058.0,0.759546]
[1721747819239,0.05,67061.0,67060.0,0.44736]
[1721747819444,0.05,67061.0,67060.0,0.7456]
[1721747819643,0.0779,67068.0,67062.0,0.447346]
[1721747819644,0.05,67063.0,67062.0,0.447346]
[1721747819928,0.05,67063.0,67062.0,0.149115]
[1721747820062,0.05,67063.0,67062.0,0.447346]
[1721747820258,0.0779,67068.0,67066.0,0.447319]
[1721747820259,0.05,67067.0,67066.0,0.447319]
[1721747820510,0.44093655,67082.0,67066.0,0.447319]
[1721747820511,0.05,67076.0,67067.0,0.447313]
[1721747820714,0.0819,67077.0,67076.0,0.745422]
[1721747820921,0.0819,67077.0,67069.0,0.13447767]
[1721747820922,0.05,67070.0,67069.0,0.13447767]
[1721747821456,0.1156,67070.0,67069.0,0.24132697]
[1721747821768,0.1156,67070.0,67069.0,0.1068493]
[1721747821975,0.264697,67070.0,67069.0,0.1068493]
[1721747822186,0.68716473,67070.0,67069.0,0.1068493]
[1721747822391,1.38620191,67070.0,67069.0,0.1068493]
[1721747822607,1.48620191,67070.0,67069.0,0.1068493]
[1721747822806,1.236663,67065.0,67064.0,0.00886727]
[1721747823008,1.236663,67065.0,67064.0,0.1165758]
[1721747823009,1.08546491,67065.0,67064.0,0.1165758]
[1721747823299,0.78724691,67065.0,67064.0,0.1165758]
[1721747823512,0.1929,67065.0,67064.0,0.1165758]
[1721747824087,0.640227,67065.0,67064.0,0.1165758]
[1721747824693,0.1929,67065.0,67064.0,0.1165758]
[1721747824907,0.342009,67065.0,67064.0,0.1245758]
[1721747825119,0.342009,67065.0,67064.0,0.1345758]
[1721747825320,0.342009,67065.0,67064.0,0.1245758]
[1721747825522,0.640227,67065.0,67064.0,0.1165758]
[1721747825682,0.640227,67065.0,67064.0,0.02186727]
[1721747825886,0.640227,67065.0,67064.0,0.11768205]
[1721747825887,0.342009,67065.0,67064.0,0.11768205]
[1721747826148,0.640227,67065.0,67064.0,0.10868205]
[1721747826360,0.99743114,67065.0,67064.0,0.10468205]
[1721747826565,0.938445,67065.0,67064.0,0.09581478]
[1721747826806,0.938445,67065.0,67064.0,0.10381478]
[1721747827418,0.640227,67065.0,67064.0,0.10381478]
[1721747827567,0.640227,67065.0,67064.0,0.11481478]
[1721747828009,0.640227,67065.0,67064.0,0.10381478]
[1721747828149,0.640227,67065.0,67064.0,0.09581478]
[1721747828356,0.342009,67065.0,67064.0,0.10981478]
[1721747828603,0.640227,67065.0,67064.0,0.10981478]
[1721747828965,0.7340704,67065.0,67064.0,0.10981478]
[1721747829175,1.48368291,67065.0,67064.0,0.10981478]
[1721747829524,1.59088291,67065.0,67064.0,0.014]
[1721747829889,0.33991991,67065.0,67064.0,0.1103466]
[1721747830083,0.1929,67065.0,67064.0,0.1103122]
[1721747831087,0.640227,67065.0,67064.0,0.1103122]
[1721747831200,1.08546491,67065.0,67064.0,0.1103122]